fUSD/lending_fUSD_20250616
["ID","MTS","AMOUNT","RATE_DAILY","PERIOD"]
[366189575,1750104669453,-490.0,0.00016649,2]
[366189576,1750104669463,-984.88,0.00016649,2]
[366189577,1750104669473,-490.0,0.00016649,2]
[366189578,1750104669483,-1224.37,0.00016649,2]
[366189579,1750104669493,-2142.72,0.00016649,2]
[366189580,1750104669502,-517.99,0.00016649,2]
[366189581,1750104669512,-758.02,0.00016649,2]
[366189582,1750104669523,-762.72,0.00016649,2]
[366189583,1750104669533,-490.0,0.00016649,2]
[366189584,1750104669542,-3747.5,0.00016649,2]
[366189585,1750104669552,-490.0,0.00016649,2]
[366189586,1750104669563,-5472.19,0.00016649,2]
[366189587,1750104669573,-490.0,0.00016649,2]
[366189588,1750104669583,-2062.25,0.00016649,2]
[366189589,1750104669593,-3236.01,0.00016649,2]
[366189590,1750104669604,-490.0,0.00016649,2]
[366189591,1750104669614,-618.494544,0.00016649,2]
[366189592,1750104669624,-490.0,0.00016649,2]
[366189593,1750104669634,-3168.77,0.00016649,2]
[366189594,1750104669645,-1372.71,0.00016649,2]
[366189595,1750104669655,-490.0,0.00016649,2]
[366189596,1750104669664,-1028.44,0.00016649,2]
[366189597,1750104669673,-1220.65,0.00016649,2]
[366189598,1750104669683,-490.0,0.00016649,2]
[366189599,1750104669693,-151.0,0.00016649,2]
[366189600,1750104669703,-614.91,0.00016649,2]
[366189601,1750104669712,-490.0,0.00016649,2]
[366189602,1750104669722,-490.0,0.00016649,2]
[366189603,1750104669731,-490.0,0.0001665,2]
[366189604,1750104669861,-703.86,0.0001665,2]
[366189605,1750104669883,-659.31,0.0001665,2]
[366189606,1750104669895,-563.6,0.0001665,2]
[366189607,1750104669905,-617.31,0.0001665,2]
[366189608,1750104669915,-490.0,0.0001665,2]
[366189609,1750104669925,-836.34,0.0001665,2]
[366189610,1750104669936,-490.0,0.0001665,2]
[366189611,1750104669946,-490.0,0.0001665,2]
[366189612,1750104669957,-490.0,0.0001665,2]
[366189613,1750104669970,-631.58,0.0001665,2]
[366189614,1750104669979,-490.0,0.0001665,2]
[366189615,1750104669989,-490.0,0.0001665,2]
[366189616,1750104669999,-523.17,0.0001665,2]
[366189617,1750104670009,-641.57,0.0001665,2]
[366189618,1750104670020,-490.0,0.0001665,2]
[366189619,1750104670030,-490.0,0.0001665,2]
[366189620,1750104670040,-490.0,0.0001665,2]
[366189621,1750104670050,-628.3,0.0001665,2]
[366189622,1750104670060,-490.0,0.0001665,2]
[366189623,1750104670069,-649.97,0.0001665,2]
[366189624,1750104670079,-490.0,0.0001665,2]
[366189625,1750104670090,-607.43,0.0001665,2]
[366189626,1750104670100,-566.4,0.0001665,2]
[366189627,1750104670110,-614.64,0.0001665,2]
[366189628,1750104670121,-490.0,0.0001665,2]
[366189629,1750104670131,-490.0,0.0001665,2]
[366189630,1750104670140,-576.73,0.0001665,2]
[366189631,1750104670151,-868.34,0.0001665,2]
[366189632,1750104670161,-529.35,0.0001665,2]
[366189633,1750104670172,-490.0,0.0001665,2]
[366189634,1750104670182,-618.0,0.0001665,2]
[366189635,1750104670192,-490.0,0.0001665,2]
[366189636,1750104670202,-621.34,0.0001665,2]
[366189637,1750104670212,-689.37,0.0001665,2]
[366189638,1750104670223,-494.88,0.0001665,2]
[366189639,1750104670232,-490.0,0.0001665,2]
[366189640,1750104670243,-434.79074672,0.0001665,2]
[366189641,1750104670253,-711.91,0.0001665,2]
[366189642,1750104670264,-490.0,0.0001665,2]
[366189643,1750104670275,-516.15,0.0001665,2]
[366189644,1750104670286,-640.62,0.0001665,2]
[366189645,1750104670296,-741.8,0.0001665,2]
[366189646,1750104670306,-829.01,0.0001665,2]
[366189647,1750104670332,-490.0,0.0001665,2]
[366189648,1750104670344,-522.17,0.0001665,2]
[366189649,1750104670355,-490.0,0.0001665,2]
[366189650,1750104670366,-514.77,0.0001665,2]
[366189651,1750104670378,-563.82,0.0001665,2]
[366189652,1750104670388,-151.0,0.0001665,2]
[366189653,1750104670400,-151.0,0.0001665,2]
[366189654,1750104670412,-151.0,0.0001665,2]
[366189655,1750104670423,-150.0,0.00016669,2]
[366189656,1750104670433,-150.0,0.00016669,2]
[366189657,1750104670444,-150.0,0.00016682,2]
[366189658,1750104670455,-174.82431446,0.00016689,2]
[366189659,1750104670465,-252.74,0.0001669,2]
[366189660,1750104670476,-150.0,0.00016692,2]
[366189661,1750104670487,-164.62597117,0.00016699,2]
[366189662,1750104670498,-237.0,0.000167,2]
[366189663,1750104670508,-376.0,0.000167,2]
[366189664,1750104670520,-769.0,0.000167,2]
[366189665,1750104670531,-758.22,0.000167,2]
[366189666,1750104670541,-300.0,0.00016703,2]
[366189667,1750104670552,-490.0,0.00016703,2]
[366189668,1750104670562,-490.0,0.00016703,2]
[366189669,1750104670573,-490.0,0.00016703,2]
[366189670,1750104670584,-490.0,0.00016703,2]
[366189671,1750104670594,-490.0,0.00016703,2]
[366189672,1750104670605,-151.0,0.00016704,2]
[366189673,1750104670616,-262.0,0.00016712,2]
[366189674,1750104670627,-150.0,0.00016712,2]
[366189675,1750104670638,-500.0,0.00016712,2]
[366189676,1750104670649,-500.0,0.00016712,2]
[366189677,1750104670659,-500.0,0.00016712,2]
[366189678,1750104670670,-500.0,0.00016712,2]
[366189679,1750104670680,-500.0,0.00016712,2]
[366189680,1750104670690,-500.0,0.00016712,2]
[366189681,1750104670701,-500.0,0.00016712,2]
[366189682,1750104670711,-182.27870275,0.00016712,2]
[366189683,1750104670721,-500.0,0.00016712,2]
[366189684,1750104670732,-1814.0,0.00016719,2]
[366189685,1750104670742,-150.0,0.00016719,2]
[366189686,1750104670760,-980.94485654,0.0001672,2]
[366189687,1750104670771,-500.0,0.00016728,2]
[366189688,1750104670782,-500.0,0.00016728,2]
[366189689,1750104670792,-500.0,0.00016728,2]
[366189690,1750104670803,-500.0,0.00016728,2]
[366189691,1750104670815,-500.0,0.00016728,2]
[366189692,1750104670826,-500.0,0.00016728,2]
[366189693,1750104670836,-500.0,0.00016728,2]
[366189694,1750104670847,-500.0,0.00016728,2]
[366189695,1750104670859,-500.0,0.00016728,2]
[366189696,1750104670869,-500.0,0.00016728,2]
[366189697,1750104670880,-500.0,0.00016728,2]
[366189698,1750104670892,-500.0,0.00016728,2]
[366189699,1750104670904,-500.0,0.00016728,2]
[366189700,1750104670915,-500.0,0.00016728,2]
[366189701,1750104670926,-500.0,0.00016728,2]
[366189702,1750104670937,-980.0,0.00016728,2]
[366189703,1750104670948,-182.63270332,0.0001673,2]
[366189704,1750104670959,-1000.0,0.00016737,2]
[366189705,1750104670971,-162.45031757,0.00016744,2]
[366189706,1750104670982,-4603.81558669,0.00016751,2]
[366189707,1750104670992,-151.30590679,0.00016757,2]
[366189708,1750104671003,-150.0,0.00016761,2]
[366189709,1750104671013,-150.0,0.00016763,2]
[366189710,1750104671023,-150.0,0.00016766,2]
[366189711,1750104671033,-1000.0,0.00016767,2]
[366189712,1750104671044,-1000.0,0.00016767,2]
[366189713,1750104671055,-1000.0,0.00016767,2]
[366189714,1750104671065,-1000.0,0.00016767,2]
[366189715,1750104671075,-1000.0,0.00016767,2]
[366189716,1750104671086,-1000.0,0.00016767,2]
[366189717,1750104671096,-1000.0,0.00016767,2]
[366189718,1750104671107,-1000.0,0.00016767,2]
[366189719,1750104671118,-1000.0,0.00016767,2]
[366189720,1750104671128,-1000.0,0.00016767,2]
[366189721,1750104671138,-150.0,0.00016774,2]
[366189722,1750104671149,-150.0,0.00016779,2]
[366189723,1750104671159,-200.0,0.00016781,2]
[366189724,1750104671170,-200.0,0.00016786,2]
[366189725,1750104671180,-200.0,0.00016788,2]
[366189726,1750104671197,-150.0,0.0001679,2]
[366189727,1750104671207,-1000.0,0.0001679,2]
[366189728,1750104671218,-200.0,0.00016794,2]
[366189729,1750104671229,-200.0,0.00016795,2]
[366189730,1750104671239,-1000.0,0.00016799,2]
[366189731,1750104671250,-150.0,0.00016801,2]
[366189732,1750104671261,-490.0,0.00016813,2]
[366189733,1750104671271,-645.18,0.00016813,2]
[366189734,1750104671282,-651.62,0.00016813,2]
[366189735,1750104671292,-1053.330119,0.00016813,2]
[366189736,1750104671303,-562.92,0.00016813,2]
[366189737,1750104671315,-574.26,0.00016813,2]
[366189738,1750104671326,-1093.44,0.00016813,2]
[366189739,1750104671336,-1941.86,0.00016813,2]
[366189740,1750104671349,-643.88,0.00016813,2]
[366189741,1750104671360,-2719.56,0.00016813,2]
[366189742,1750104671370,-166.132104,0.00016813,2]
[366189743,1750104671381,-830.48,0.00016813,2]
[366189744,1750104671392,-1357.86,0.00016813,2]
[366189745,1750104671404,-906.95,0.00016813,2]
[366189746,1750104671415,-490.0,0.00016813,2]
[366189747,1750104671426,-490.0,0.00016813,2]
[366189748,1750104671436,-596.59,0.00016813,2]
[366189749,1750104671448,-1302.19,0.00016813,2]
[366189750,1750104671460,-498.26,0.00016813,2]
[366189751,1750104671471,-520.64,0.00016813,2]
[366189752,1750104671481,-490.0,0.00016813,2]
[366189753,1750104671492,-3409.01,0.00016813,2]
[366189754,1750104671502,-490.0,0.00016813,2]
[366189755,1750104671513,-1121.01,0.00016813,2]
[366189756,1750104671523,-490.0,0.00016813,2]
[366189757,1750104671535,-2152.11,0.00016813,2]
[366189758,1750104671546,-490.0,0.00016813,2]
[366189759,1750104671557,-490.0,0.00016813,2]
[366189760,1750104671567,-703.85,0.00016813,2]
[366189761,1750104671578,-490.0,0.00016813,2]
[366189762,1750104671589,-765.88,0.00016813,2]
[366189763,1750104671600,-1293.43,0.00016813,2]
[366189764,1750104671610,-2680.03,0.00016813,2]
[366189765,1750104671622,-1123.57,0.00016813,2]
[366189766,1750104671637,-683.91,0.00016813,2]
[366189767,1750104671647,-496.21,0.00016813,2]
[366189768,1750104671658,-490.0,0.00016813,2]
[366189769,1750104671669,-1265.19,0.00016813,2]
[366189770,1750104671679,-1368.0,0.00016813,2]
[366189771,1750104671689,-539.37,0.00016813,2]
[366189772,1750104671700,-497.24073149,0.00016813,2]
[366189773,1750104671711,-1681.53,0.00016813,2]
[366189774,1750104671721,-490.0,0.00016813,2]
[366189775,1750104671731,-1900.07,0.00016813,2]
[366189776,1750104671742,-166.132103,0.00016813,2]
[366189777,1750104671753,-490.0,0.00016813,2]
[366189778,1750104671763,-490.0,0.00016813,2]
[366189779,1750104671774,-490.0,0.00016813,2]
[366189780,1750104671784,-984.88,0.00016813,2]
[366189781,1750104671794,-490.0,0.00016813,2]
[366189782,1750104671805,-1224.37,0.00016813,2]
[366189783,1750104671818,-758.02,0.00016813,2]
[366189784,1750104671828,-762.72,0.00016813,2]
[366189785,1750104671838,-490.0,0.00016813,2]
[366189786,1750104671849,-2062.25,0.00016813,2]
[366189787,1750104671860,-490.0,0.00016813,2]
[366189788,1750104671870,-618.494544,0.00016813,2]
[366189789,1750104671880,-490.0,0.00016813,2]
[366189790,1750104671889,-3168.77,0.00016813,2]
[366189791,1750104671902,-490.0,0.00016813,2]
[366189792,1750104671912,-1028.44,0.00016813,2]
[366189793,1750104671922,-1220.65,0.00016813,2]
[366189794,1750104671933,-490.0,0.00016813,2]
[366189795,1750104671943,-200.0,0.00016814,2]
[366189796,1750104671953,-200.0,0.00016814,2]
[366189797,1750104671963,-490.0,0.00016814,2]
[366189798,1750104671973,-490.0,0.00016814,2]
[366189799,1750104671985,-490.0,0.00016814,2]
[366189800,1750104671995,-703.86,0.00016814,2]
[366189801,1750104672005,-659.31,0.00016814,2]
[366189802,1750104672016,-490.0,0.00016814,2]
[366189803,1750104672028,-563.6,0.00016814,2]
[366189804,1750104672039,-617.31,0.00016814,2]
[366189805,1750104672049,-506.16,0.00016814,2]
[366189806,1750104672059,-490.0,0.00016814,2]
[366189807,1750104672070,-836.34,0.00016814,2]
[366189808,1750104672091,-490.0,0.00016814,2]
[366189809,1750104672102,-490.0,0.00016814,2]
[366189810,1750104672115,-490.0,0.00016814,2]
[366189811,1750104672126,-490.0,0.00016814,2]
[366189812,1750104672137,-490.0,0.00016814,2]
[366189813,1750104672148,-631.58,0.00016814,2]
[366189814,1750104672158,-490.0,0.00016814,2]
[366189815,1750104672168,-490.0,0.00016814,2]
[366189816,1750104672179,-490.0,0.00016814,2]
[366189817,1750104672189,-490.0,0.00016814,2]
[366189818,1750104672199,-523.17,0.00016814,2]
[366189819,1750104672209,-641.57,0.00016814,2]
[366189820,1750104672219,-490.0,0.00016814,2]
[366189821,1750104672229,-406.35148107,0.00016814,2]
[366189822,1750104672239,-490.0,0.00016814,2]
[366189823,1750104672727,-490.0,0.00016814,2]
[366189824,1750104672738,-698.25,0.00016814,2]
[366189825,1750104672748,-490.0,0.00016814,2]
[366189826,1750104672759,-628.3,0.00016814,2]
[366189827,1750104672768,-490.0,0.00016814,2]
[366189828,1750104672778,-546.01,0.00016814,2]
[366189829,1750104672788,-490.0,0.00016814,2]
[366189830,1750104672798,-490.0,0.00016814,2]
[366189831,1750104672808,-649.97,0.00016814,2]
[366189832,1750104672823,-490.0,0.00016814,2]
[366189833,1750104672833,-490.0,0.00016814,2]
[366189834,1750104672843,-607.43,0.00016814,2]
[366189835,1750104672854,-527.47,0.00016814,2]
[366189836,1750104672863,-566.4,0.00016814,2]
[366189837,1750104672873,-490.0,0.00016814,2]
[366189838,1750104672883,-490.0,0.00016814,2]
[366189839,1750104672893,-490.62,0.00016814,2]
[366189840,1750104672903,-614.64,0.00016814,2]
[366189841,1750104672914,-490.0,0.00016814,2]
[366189842,1750104672923,-490.0,0.00016814,2]
[366189843,1750104672933,-490.0,0.00016814,2]
[366189844,1750104672942,-490.0,0.00016814,2]
[366189845,1750104672952,-576.73,0.00016814,2]
[366189846,1750104672961,-868.34,0.00016814,2]
[366189847,1750104672971,-500.13,0.00016814,2]
[366189848,1750104672980,-747.73,0.00016814,2]
[366189849,1750104672990,-490.0,0.00016814,2]
[366189850,1750104673000,-600.61,0.00016814,2]
[366189851,1750104673009,-529.35,0.00016814,2]
[366189852,1750104673019,-506.11,0.00016814,2]
[366189853,1750104673029,-490.0,0.00016814,2]
[366189854,1750104673039,-490.0,0.00016814,2]
[366189855,1750104673048,-618.0,0.00016814,2]
[366189856,1750104673058,-601.49,0.00016814,2]
[366189857,1750104673068,-490.0,0.00016814,2]
[366189858,1750104673079,-490.0,0.00016814,2]
[366189859,1750104673088,-857.07,0.00016814,2]
[366189860,1750104673098,-621.34,0.00016814,2]
[366189861,1750104673108,-586.62,0.00016814,2]
[366189862,1750104673118,-689.37,0.00016814,2]
[366189863,1750104673128,-490.0,0.00016814,2]
[366189864,1750104673138,-494.88,0.00016814,2]
[366189865,1750104673147,-490.0,0.00016814,2]
[366189866,1750104673158,-636.95,0.00016814,2]
[366189867,1750104673167,-490.0,0.00016814,2]
[366189868,1750104673177,-490.0,0.00016814,2]
[366189869,1750104673186,-490.0,0.00016814,2]
[366189870,1750104673196,-711.91,0.00016814,2]
[366189871,1750104673208,-490.0,0.00016814,2]
[366189872,1750104673217,-707.95,0.00016814,2]
[366189873,1750104673228,-490.0,0.00016814,2]
[366189874,1750104673238,-490.0,0.00016814,2]
[366189875,1750104673248,-565.53,0.00016814,2]
[366189876,1750104673257,-872.23,0.00016814,2]
[366189877,1750104673267,-490.0,0.00016814,2]
[366189878,1750104673276,-519.76,0.00016814,2]
[366189879,1750104673285,-490.0,0.00016814,2]
[366189880,1750104673295,-516.15,0.00016814,2]
[366189881,1750104673304,-938.64,0.00016814,2]
[366189882,1750104673314,-490.0,0.00016814,2]
[366189883,1750104673324,-844.56,0.00016814,2]
[366189884,1750104673334,-1137.0,0.00016814,2]
[366189885,1750104673344,-490.0,0.00016814,2]
[366189886,1750104673354,-7450.49,0.00016814,2]
[366189887,1750104673364,-640.62,0.00016814,2]
[366189888,1750104673374,-1266.65585384,0.00016814,2]
[366189889,1750104673761,-490.0,0.00016321,2]
[366189890,1750104673772,-490.0,0.00016813,2]
[366189891,1750104673782,-107.1,0.00016814,2]
[366189892,1750104674404,-472.77139029,0.00015563,2]
[366189893,1750104674417,-554.09,0.00015563,2]
[366189894,1750104674430,-4836.0,0.00015563,2]
[366189895,1750104674442,-2701.44810971,0.00015563,2]
[366189896,1750104674452,-490.0,0.00015662,2]
[366189897,1750104674462,-490.0,0.00015662,2]
[366189898,1750104674472,-490.0,0.00015827,2]
[366189899,1750104674482,-367.33,0.00015827,2]
[366189900,1750104674492,-490.0,0.00015991,2]
[366189901,1750104674502,-490.0,0.00016155,2]
[366189902,1750104674512,-527.82,0.00016156,2]
[366189903,1750104674522,-3324.75547722,0.00016306,2]
[366189904,1750104674532,-151.0,0.0001632,2]
[366189905,1750104674541,-490.0,0.0001632,2]
[366189906,1750104674551,-151.0,0.0001632,2]
[366189907,1750104674562,-527.82,0.00016321,2]
[366189908,1750104674572,-884.0,0.00016413,2]
[366189909,1750104674582,-490.0,0.00016484,2]
[366189910,1750104674593,-490.0,0.00016485,2]
[366189911,1750104674602,-527.82,0.00016485,2]
[366189912,1750104674611,-151.0,0.00016485,2]
[366189913,1750104674622,-151.0,0.00016485,2]
[366189914,1750104674632,-490.0,0.00016649,2]
[366189915,1750104674641,-527.82,0.00016649,2]
[366189916,1750104674653,-490.0,0.00016649,2]
[366189917,1750104674663,-151.0,0.00016649,2]
[366189918,1750104674672,-151.0,0.00016649,2]
[366189919,1750104674682,-490.0,0.00016813,2]
[366189920,1750104674691,-500.66414616,0.00016814,2]
[366189921,1750104674702,-635.92,0.00016814,2]
[366189922,1750104674713,-927.76,0.00016814,2]
[366189923,1750104674723,-741.8,0.00016814,2]
[366189924,1750104674732,-816.34,0.00016814,2]
[366189925,1750104674742,-756.05,0.00016814,2]
[366189926,1750104674751,-829.01,0.00016814,2]
[366189927,1750104674762,-221.04163069,0.00016814,2]
[366189928,1750104674771,-1597.18,0.00016814,2]
[366189929,1750104674782,-1713.39,0.00016814,2]
[366189930,1750104674791,-490.0,0.00016814,2]
[366189931,1750104674801,-490.0,0.00016814,2]
[366189932,1750104674812,-490.0,0.00016814,2]
[366189933,1750104674827,-490.0,0.00016814,2]
[366189934,1750104674837,-490.0,0.00016814,2]
[366189935,1750104674847,-763.34,0.00016814,2]
[366189936,1750104674858,-690.44,0.00016814,2]
[366189937,1750104674868,-490.0,0.00016814,2]
[366189938,1750104674878,-1198.82,0.00016814,2]
[366189939,1750104674887,-491.05,0.00016814,2]
[366189940,1750104674898,-522.17,0.00016814,2]
[366189941,1750104674909,-501.49,0.00016814,2]
[366189942,1750104674992,-643.68,0.00016814,2]
[366189943,1750104675002,-490.0,0.00016814,2]
[366189944,1750104675012,-491.83,0.00016814,2]
[366189945,1750104675022,-490.0,0.00016814,2]
[366189946,1750104675032,-598.64,0.00016814,2]
[366189947,1750104675042,-490.0,0.00016814,2]
[366189948,1750104675055,-490.0,0.00016814,2]
[366189949,1750104675065,-490.0,0.00016814,2]
[366189950,1750104675075,-939.23,0.00016814,2]
[366189951,1750104675085,-514.77,0.00016814,2]
[366189952,1750104675095,-1481.01,0.00016814,2]
[366189953,1750104675104,-574.31,0.00016814,2]
[366189954,1750104675114,-490.0,0.00016814,2]
[366189955,1750104675126,-563.82,0.00016814,2]
[366189956,1750104675136,-1940.92,0.00016814,2]
[366189957,1750104675145,-490.0,0.00016814,2]
[366189958,1750104675158,-490.0,0.00016814,2]
[366189959,1750104675168,-490.0,0.00016814,2]
[366189960,1750104675178,-3585.03,0.00016814,2]
[366189961,1750104675188,-490.0,0.00016814,2]
[366189962,1750104675199,-490.0,0.00016814,2]
[366189963,1750104675209,-490.0,0.00016814,2]
[366189964,1750104675219,-490.0,0.00016814,2]
[366189965,1750104675229,-1195.37,0.00016814,2]
[366189966,1750104675239,-3486.61,0.00016814,2]
[366189967,1750104675249,-490.0,0.00016814,2]
[366189968,1750104675259,-490.0,0.00016814,2]
[366189969,1750104675269,-576.66,0.00016814,2]
[366189970,1750104675279,-490.0,0.00016814,2]
[366189971,1750104675289,-1539.45,0.00016814,2]
[366189972,1750104675300,-570.28844085,0.00016814,2]
[366189973,1750104675310,-8919.71,0.00016814,2]
[366189974,1750104675320,-490.0,0.00016814,2]
[366189975,1750104675329,-490.0,0.00016814,2]
[366189976,1750104675339,-2373.98,0.00016814,2]
[366189977,1750104675349,-668.88,0.00016814,2]
[366189978,1750104675359,-490.0,0.00016814,2]
[366189979,1750104675370,-490.0,0.00016814,2]
[366189980,1750104675379,-935.48,0.00016814,2]
[366189981,1750104675389,-768.66,0.00016814,2]
[366189982,1750104675400,-490.0,0.00016814,2]
[366189983,1750104675410,-1265.71,0.00016814,2]
[366189984,1750104675420,-799.33,0.00016814,2]
[366189985,1750104675429,-680.87,0.00016814,2]
[366189986,1750104675440,-490.0,0.00016814,2]
[366189987,1750104675450,-490.0,0.00016814,2]
[366189988,1750104675459,-984.32,0.00016814,2]
[366189989,1750104675470,-490.0,0.00016814,2]
[366189990,1750104675479,-490.0,0.00016814,2]
[366189991,1750104675490,-515.93,0.00016814,2]
[366189992,1750104675499,-1507.29,0.00016814,2]
[366189993,1750104675509,-940.17,0.00016814,2]
[366189994,1750104675519,-490.0,0.00016814,2]
[366189995,1750104675529,-490.0,0.00016814,2]
[366189996,1750104675539,-490.0,0.00016814,2]
[366189997,1750104675549,-594.65,0.00016814,2]
[366189998,1750104675559,-574.72,0.00016814,2]
[366189999,1750104675569,-1606.7,0.00016814,2]
[366190000,1750104675579,-7755.07,0.00016814,2]
[366190001,1750104675588,-490.0,0.00016814,2]
[366190002,1750104675598,-430.02432443,0.00016814,2]
[366190003,1750104675608,-490.0,0.00016814,2]
[366190004,1750104675617,-516.77,0.00016814,2]
[366190005,1750104675627,-490.0,0.00016814,2]
[366190006,1750104675637,-2924.91,0.00016814,2]
[366190007,1750104675647,-1557.21,0.00016814,2]
[366190008,1750104675657,-2844.63,0.00016814,2]
[366190009,1750104675667,-490.0,0.00016814,2]
[366190010,1750104675676,-576.19,0.00016814,2]
[366190011,1750104675686,-490.0,0.00016814,2]
[366190012,1750104675696,-490.0,0.00016814,2]
[366190013,1750104675705,-2142.72,0.00016814,2]
[366190014,1750104675715,-517.99,0.00016814,2]
[366190015,1750104675724,-490.0,0.00016814,2]
[366190016,1750104675733,-3747.5,0.00016814,2]
[366190017,1750104675743,-5472.19,0.00016814,2]
[366190018,1750104675753,-616.91734617,0.00016814,2]
[366190019,1750104675762,-3236.01,0.00016814,2]
[366190020,1750104675772,-1372.71,0.00016814,2]
[366190021,1750104675782,-490.0,0.00016814,2]
[366190022,1750104675791,-614.91,0.00016814,2]
[366190023,1750104675800,-490.0,0.00016814,2]
[366190024,1750104675811,-527.82,0.00016814,2]
[366190025,1750104675825,-150.0,0.00016826,2]
[366190026,1750104675836,-150.0,0.0001684,2]
[366190027,1750104675845,-200.0,0.00016844,2]
[366190028,1750104675856,-200.0,0.00016856,2]
[366190029,1750104675866,-150.0,0.00016863,2]
[366190030,1750104675875,-300.0,0.00016863,2]
[366190031,1750104675884,-666.0,0.00016863,2]
[366190032,1750104675893,-4473.5306815,0.00016864,2]
[366190033,1750104675905,-177764.8706015,0.00016864,2]
[366190034,1750104675915,-7233.1015155,0.00016864,2]
[366190035,1750104675928,-12533.0157037,0.00016864,2]
[366190036,1750104675939,-151.0,0.00016864,2]
[366190037,1750104675949,-151.0,0.00016864,2]
[366190038,1750104675958,-151.0,0.00016864,2]
[366190039,1750104675967,-151.0,0.00016864,2]
[366190040,1750104675977,-5429.4383978,0.00016864,2]
[366190041,1750104675987,-48620.9368495,0.00016864,2]
[366190042,1750104675997,-151.0,0.00016864,2]
[366190043,1750104676007,-151.0,0.00016864,2]
[366190044,1750104676016,-345.92540409,0.00016867,2]
[366190045,1750104676025,-490.0,0.00016867,2]
[366190046,1750104676034,-490.0,0.00016867,2]
[366190047,1750104676044,-490.0,0.00016867,2]
[366190048,1750104676053,-490.0,0.00016867,2]
[366190049,1750104676062,-490.0,0.00016867,2]
[366190050,1750104676071,-200.0,0.00016869,2]
[366190051,1750104676080,-151.0,0.00016869,2]
[366190052,1750104676089,-200.0,0.00016869,2]
[366190053,1750104676099,-1324.34049944,0.00016869,2]
[366190054,1750104676108,-200.0,0.00016869,2]
[366190055,1750104676118,-152.0,0.00016875,4]
[366190056,1750104676128,-200.0,0.00016879,2]
[366190057,1750104676137,-200.0,0.00016879,2]
[366190058,1750104676147,-200.0,0.00016879,2]
[366190059,1750104676158,-250.64207354,0.00016881,2]
[366190060,1750104676167,-200.0,0.00016884,2]
[366190061,1750104676177,-164.62597117,0.00016888,2]
[366190062,1750104676186,-1814.0,0.00016889,2]
[366190063,1750104676195,-200.0,0.0001689,2]
[366190064,1750104676205,-200.0,0.00016891,2]
[366190065,1750104676214,-250.64207354,0.00016892,2]
[366190066,1750104676224,-250.64207354,0.00016894,2]
[366190067,1750104676233,-250.64207354,0.00016897,2]
[366190068,1750104676242,-200.0,0.00016898,2]
[366190069,1750104676251,-209.5,0.000169,2]
[366190070,1750104676261,-162.45031757,0.000169,2]
[366190071,1750104676270,-174.82431446,0.000169,2]
[366190072,1750104676279,-1000.0,0.000169,2]
[366190073,1750104676289,-163.43123166,0.000169,2]
[366190074,1750104676298,-4603.81558669,0.000169,2]